fUST/lending_fUST_20250202
["ID","MTS","AMOUNT","RATE_DAILY","PERIOD"]
[351233604,1738462238673,-497.94920314,0.00016438,2]
[351233605,1738462238688,-459.49779472,0.00016438,2]
[351233606,1738462238704,-502.11845928,0.00016438,2]
[351233607,1738462238719,-500.0,0.00016438,2]
[351233608,1738462238732,-365.39215376,0.00016438,2]
[351233609,1738462238743,-500.0,0.00016438,2]
[351233610,1738462238756,-504.95700183,0.00016438,2]
[351233611,1738462238770,-523.42297461,0.00016438,2]
[351233612,1738462238783,-500.0,0.00016438,2]
[351233613,1738462238797,-502.07953833,0.00016438,2]
[351233616,1738462238812,-500.0,0.00016438,2]
[351233618,1738462238826,-500.0,0.00016438,2]
[351233621,1738462238840,-508.13218342,0.00016438,2]
[351233623,1738462238854,-500.0,0.00016438,2]
[351233626,1738462238868,-194.76717247,0.00016438,2]
[351233628,1738462238883,-502.82497469,0.00016438,2]
[351233631,1738462238897,-506.08072971,0.00016438,2]
[351233633,1738462238910,-250.61535648,0.00016438,2]
[351233635,1738462238923,-500.0,0.00016438,2]
[351233638,1738462238936,-501.90430913,0.00016438,2]
[351233640,1738462238948,-500.0,0.00016438,2]
[351233643,1738462238963,-500.0,0.00016438,2]
[351233645,1738462238977,-505.09110915,0.00016438,2]
[351233648,1738462238989,-500.0,0.00016438,2]
[351233650,1738462239001,-338.11581725,0.00016438,2]
[351233652,1738462239012,-500.0,0.00016438,2]
[351233654,1738462239024,-500.0,0.00016438,2]
[351233656,1738462239036,-341.92831169,0.00016438,2]
[351233659,1738462239048,-496.66275351,0.00016438,2]
[351233661,1738462239062,-502.28428945,0.00016438,2]
[351233664,1738462239075,-2585.97,0.00016438,2]
[351233666,1738462239089,-500.0,0.00016438,2]
[351233669,1738462239102,-701.15,0.00016438,2]
[351233671,1738462239116,-504.27214819,0.00016438,2]
[351233673,1738462239130,-502.87473744,0.00016438,2]
[351233676,1738462239144,-505.50998186,0.00016438,2]
[351233678,1738462239158,-502.23519301,0.00016438,2]
[351233681,1738462239169,-500.0,0.00016438,2]
[351233683,1738462239181,-505.97274239,0.00016438,2]
[351233685,1738462239191,-508.73703168,0.00016438,2]
[351233687,1738462239201,-502.79185246,0.00016438,2]
[351233688,1738462239213,-500.0,0.00016438,2]
[351233690,1738462239230,-503.72129583,0.00016438,2]
[351233692,1738462239244,-1054.35,0.00016438,2]
[351233695,1738462239258,-500.0,0.00016438,2]
[351233696,1738462239270,-507.81139485,0.00016438,2]
[351233697,1738462239281,-504.96637495,0.00016438,2]
[351233698,1738462239293,-503.24483715,0.00016438,2]
[351233699,1738462239305,-502.05756325,0.00016438,2]
[351233702,1738462239318,-694.76,0.00016438,2]
[351233703,1738462239332,-694.76,0.00016438,2]
[351233705,1738462239343,-694.76,0.00016438,2]
[351233707,1738462239354,-694.76,0.00016438,2]
[351233709,1738462239365,-694.76,0.00016438,2]
[351233710,1738462239376,-694.76,0.00016438,2]
[351233712,1738462239387,-694.76,0.00016438,2]
[351233713,1738462239399,-694.76,0.00016438,2]
[351233714,1738462239411,-500.0,0.00016438,2]
[351233715,1738462239431,-500.0,0.00016438,2]
[351233716,1738462239443,-503.07571443,0.00016438,2]
[351233718,1738462239454,-500.0,0.00016438,2]
[351233720,1738462239466,-509.54731386,0.00016438,2]
[351233722,1738462239477,-500.0,0.00016438,2]
[351233723,1738462239488,-481.73773683,0.00016438,2]
[351233724,1738462239500,-419.58730292,0.00016438,2]
[351233725,1738462239511,-504.59955668,0.00016438,2]
[351233726,1738462239524,-500.0,0.00016438,2]
[351233727,1738462239535,-500.0,0.00016438,2]
[351233728,1738462239547,-506.08505365,0.00016438,2]
[351233730,1738462239558,-515.87124552,0.00016438,2]
[351233731,1738462239569,-500.0,0.00016438,2]
[351233732,1738462239581,-556.02920262,0.00016438,2]
[351233733,1738462239592,-249.27780656,0.00016438,2]
[351233734,1738462239603,-503.01738765,0.00016438,2]
[351233735,1738462239614,-500.0,0.00016438,2]
[351233736,1738462239626,-2497.11,0.00016438,2]
[351233737,1738462239637,-500.0,0.00016438,2]
[351233738,1738462239649,-500.0,0.00016438,2]
[351233739,1738462239660,-253.72888649,0.00016438,2]
[351233741,1738462239672,-501.84813597,0.00016438,2]
[351233743,1738462239683,-502.63188475,0.00016438,2]
[351233746,1738462239696,-500.0,0.00016438,2]
[351233748,1738462239707,-500.0,0.00016438,2]
[351233749,1738462239719,-328.25653481,0.00016438,2]
[351233750,1738462239731,-962.2,0.00016438,2]
[351233751,1738462239742,-505.83389371,0.00016438,2]
[351233752,1738462239753,-742.22,0.00016438,2]
[351233753,1738462239765,-505.10957262,0.00016438,2]
[351233754,1738462239777,-246.98781097,0.00016438,2]
[351233755,1738462239789,-500.0,0.00016438,2]
[351233756,1738462239801,-307.94508126,0.00016438,2]
[351233757,1738462239813,-504.12239812,0.00016438,2]
[351233758,1738462239824,-1165.68,0.00016438,2]
[351233759,1738462239837,-500.0,0.00016438,2]
[351233760,1738462239849,-626.68,0.00016438,2]
[351233761,1738462239862,-689.01,0.00016438,2]
[351233763,1738462239874,-515.08686452,0.00016438,2]
[351233764,1738462239887,-500.0,0.00016438,2]
[351233765,1738462239899,-500.0,0.00016438,2]
[351233766,1738462239911,-500.0,0.00016438,2]
[351233767,1738462239923,-500.0,0.00016438,2]
[351233768,1738462239936,-500.0,0.00016438,2]
[351233769,1738462239945,-500.0,0.00016438,2]
[351233770,1738462239955,-502.5513236,0.00016438,2]
[351233772,1738462239966,-646.88230155,0.00016438,2]
[351233774,1738462239975,-513.18104636,0.00016438,2]
[351233775,1738462239987,-2452.08,0.00016438,2]
[351233786,1738462239998,-325.60021886,0.00016438,2]
[351233819,1738462245720,-199.29202894,0.00016438,2]
[351233820,1738462245730,-500.0,0.00016438,2]
[351233821,1738462245739,-500.91094002,0.00016438,2]
[351233822,1738462245749,-683.4,0.00016438,2]
[351233823,1738462245759,-500.0,0.00016438,2]
[351233824,1738462245769,-500.0,0.00016438,2]
[351233825,1738462245779,-500.0,0.00016438,2]
[351233826,1738462245789,-500.0,0.00016438,2]
[351233827,1738462245799,-516.684198,0.00016438,2]
[351233828,1738462245809,-524.1174728,0.00016438,2]
[351233829,1738462245818,-1203.37,0.00016438,2]
[351233830,1738462245829,-505.51050757,0.00016438,2]
[351233831,1738462245838,-500.0,0.00016438,2]
[351233832,1738462245847,-500.0,0.00016438,2]
[351233833,1738462245857,-500.0,0.00016438,2]
[351233834,1738462245866,-500.0,0.00016438,2]
[351233836,1738462245875,-211.51457814,0.00016438,2]
[351233837,1738462245885,-500.0,0.00016438,2]
[351233838,1738462245894,-2530.06533284,0.00016438,2]
[351233842,1738462246171,-6112.21466716,0.00016438,2]
[351233843,1738462246181,-506.45479943,0.00016438,2]
[351233844,1738462246191,-500.0,0.00016438,2]
[351233845,1738462246201,-212.53393374,0.00016529,2]
[351233846,1738462246211,-556.45972303,0.00016574,2]
[351233847,1738462246220,-500.0,0.00016574,2]
[351233848,1738462246233,-694.76,0.00016574,2]
[351233849,1738462246243,-694.76,0.00016574,2]
[351233850,1738462246252,-500.0,0.00016575,2]
[351233851,1738462246262,-193.63395533,0.00016575,2]
[351233852,1738462246274,-504.38579997,0.00016575,2]
[351233853,1738462246283,-277.80208024,0.00016575,2]
[351233854,1738462246293,-291.9793999,0.00016575,2]
[351233855,1738462246304,-501.41595584,0.00016575,2]
[351233856,1738462246313,-500.0,0.00016575,2]
[351233857,1738462246322,-500.0,0.00016575,2]
[351233858,1738462246333,-561.13729529,0.00016575,2]
[351233859,1738462246342,-266.60064723,0.00016575,2]
[351233860,1738462246352,-507.27920647,0.00016575,2]
[351233861,1738462246361,-503.40039397,0.00016575,2]
[351233862,1738462246371,-500.0,0.00016575,2]
[351233863,1738462246380,-505.55725895,0.00016575,2]
[351233864,1738462246390,-504.84060218,0.00016575,2]
[351233865,1738462246399,-505.37978744,0.00016575,2]
[351233866,1738462246409,-500.0,0.00016575,2]
[351233867,1738462246418,-503.0219612,0.00016575,2]
[351233868,1738462246428,-489.66468001,0.00016575,2]
[351233869,1738462246440,-21.62017181,0.00016575,2]
[351233870,1738462246450,-500.0,0.00016575,2]
[351233871,1738462246462,-508.18058114,0.00016575,2]
[351233872,1738462246471,-508.89791632,0.00016575,2]
[351233873,1738462246481,-345.26940642,0.00016575,2]
[351233874,1738462246491,-509.11965551,0.00016575,2]
[351233875,1738462246500,-507.70748994,0.00016575,2]
[351233876,1738462246510,-511.2239427,0.00016575,2]
[351233877,1738462246520,-500.0,0.00016575,2]
[351233878,1738462246529,-511.33349801,0.00016575,2]
[351233879,1738462246539,-509.53738952,0.00016575,2]
[351233880,1738462246549,-500.0,0.00016575,2]
[351233881,1738462246559,-507.83388125,0.00016575,2]
[351233882,1738462246568,-500.0,0.00016575,2]
[351233883,1738462246578,-529.11108976,0.00016575,2]
[351233884,1738462246587,-643.69620347,0.00016575,2]
[351233885,1738462246597,-515.25427373,0.00016575,2]
[351233886,1738462246606,-510.93893656,0.00016575,2]
[351233887,1738462246615,-500.0,0.00016575,2]
[351233888,1738462246625,-504.14105735,0.00016575,2]
[351233889,1738462246635,-454.13450651,0.00016575,2]
[351233890,1738462246648,-57.12378526,0.00016575,2]
[351233891,1738462246658,-376.7044635,0.00016575,2]
[351233892,1738462246744,-141.92014889,0.00016575,2]
[351233893,1738462246754,-462.02462899,0.00016575,2]
[351233894,1738462246764,-505.3681582,0.00016575,2]
[351233895,1738462246774,-504.170842,0.00016575,2]
[351233896,1738462246784,-507.45523682,0.00016575,2]
[351233897,1738462246794,-503.65697603,0.00016575,2]
[351233898,1738462246806,-507.81391207,0.00016575,2]
[351233899,1738462246816,-382.99213464,0.00016575,2]
[351233900,1738462246826,-507.85161977,0.00016575,2]
[351233901,1738462246836,-504.38163193,0.00016575,2]
[351233902,1738462246845,-504.46276198,0.00016575,2]
[351233903,1738462246855,-508.82171499,0.00016575,2]
[351233904,1738462246864,-503.46606248,0.00016575,2]
[351233905,1738462246873,-506.64717996,0.00016575,2]
[351233906,1738462246883,-514.47656668,0.00016575,2]
[351233907,1738462246893,-500.0,0.00016575,2]
[351233908,1738462246902,-504.56248314,0.00016575,2]
[351233909,1738462246912,-354.82059473,0.00016575,2]
[351233910,1738462246921,-504.82064605,0.00016575,2]
[351233911,1738462246931,-500.0,0.00016575,2]
[351233912,1738462246940,-500.0,0.00016575,2]
[351233913,1738462246949,-500.0,0.00016575,2]
[351233914,1738462246959,-500.0,0.00016575,2]
[351233915,1738462246969,-504.74689492,0.00016575,2]
[351233916,1738462246978,-555.85055047,0.00016575,2]
[351233917,1738462246988,-504.21446632,0.00016575,2]
[351233918,1738462246997,-2585.97,0.00016575,2]
[351233919,1738462247007,-701.15,0.00016575,2]
[351233920,1738462247017,-500.0,0.00016575,2]
[351233921,1738462247027,-1054.35,0.00016575,2]
[351233922,1738462247037,-500.0,0.00016575,2]
[351233923,1738462247049,-502.85142736,0.00016575,2]
[351233924,1738462247058,-500.0,0.00016575,2]
[351233925,1738462247068,-503.68138281,0.00016575,2]
[351233926,1738462247077,-455.86507712,0.00016575,2]
[351233927,1738462247087,-500.0,0.00016575,2]
[351233928,1738462247096,-505.59391698,0.00016575,2]
[351233929,1738462247106,-2497.11,0.00016575,2]
[351233930,1738462247115,-500.0,0.00016575,2]
[351233931,1738462247125,-962.2,0.00016575,2]
[351233932,1738462247135,-742.22,0.00016575,2]
[351233933,1738462247146,-500.0,0.00016575,2]
[351233934,1738462247156,-1165.68,0.00016575,2]
[351233935,1738462247166,-689.01,0.00016575,2]
[351233936,1738462247175,-2452.08,0.00016575,2]
[351233937,1738462247184,-223.42603482,0.00016575,2]
[351233938,1738462247193,-683.4,0.00016575,2]
[351233939,1738462247203,-1203.37,0.00016575,2]
[351233940,1738462247213,-500.0,0.00016575,2]
[351233941,1738462247223,-500.0,0.00016575,2]
[351233942,1738462247239,-2594.89297349,0.00016575,2]
[351233943,1738462247355,-849.52682919,0.00016575,2]
[351233944,1738462247369,-1000.9,0.00016575,2]
[351233945,1738462247380,-741.32642241,0.00016575,2]
[351233946,1738462247392,-1966.86655072,0.00016575,2]
[351233947,1738462247403,-1488.76722419,0.00016575,2]
[351233948,1738462247413,-304.61032541,0.00016575,2]
[351233949,1738462247425,-195.38967459,0.00016575,2]
[351233950,1738462247434,-485.05881431,0.00016711,2]
[351233951,1738462247446,-14.94118569,0.00016711,2]
[351233952,1738462247456,-500.0,0.00016711,2]
[351233953,1738462247466,-694.76,0.00016711,2]
[351233954,1738462247476,-694.76,0.00016711,2]
[351233955,1738462247486,-500.0,0.00016712,2]
[351233956,1738462247496,-193.22746276,0.00016712,2]
[351233957,1738462247506,-500.0,0.00016712,2]
[351233958,1738462247516,-507.70413042,0.00016712,2]
[351233959,1738462247527,-181.8748184,0.00016712,2]
[351233960,1738462247536,-256.67768902,0.00016712,2]
[351233961,1738462247547,-500.0,0.00016712,2]
[351233962,1738462247557,-500.0,0.00016712,2]
[351233963,1738462247566,-512.42628162,0.00016712,2]
[351233964,1738462247575,-500.0,0.00016712,2]
[351233965,1738462247585,-500.0,0.00016712,2]
[351233966,1738462247595,-500.0,0.00016712,2]
[351233967,1738462247605,-500.0,0.00016712,2]
[351233968,1738462247614,-500.0,0.00016712,2]
[351233969,1738462247623,-238.34695561,0.00016712,2]
[351233970,1738462247633,-2585.97,0.00016712,2]
[351233971,1738462247642,-500.0,0.00016712,2]
[351233972,1738462247652,-1054.35,0.00016712,2]
[351233973,1738462247661,-500.0,0.00016712,2]
[351233974,1738462247670,-324.36704789,0.00016712,2]
[351233975,1738462247680,-500.0,0.00016712,2]
[351233976,1738462247689,-2497.11,0.00016712,2]
[351233977,1738462247698,-500.0,0.00016712,2]
[351233978,1738462247708,-962.2,0.00016712,2]
[351233979,1738462247717,-742.22,0.00016712,2]
[351233980,1738462247727,-385.60704954,0.00016712,2]
[351233981,1738462247736,-1165.68,0.00016712,2]
[351233982,1738462247745,-689.01,0.00016712,2]
[351233983,1738462247754,-2452.08,0.00016712,2]
[351233984,1738462247764,-683.4,0.00016712,2]
[351233985,1738462247774,-1203.37,0.00016712,2]
[351233986,1738462247783,-557.05208101,0.00016712,2]
[351233987,1738462247792,-508.21651406,0.00016712,2]
[351233988,1738462247803,-6126.14434071,0.00016712,2]
[351233989,1738462247815,-2516.13565929,0.00016712,2]
[351233990,1738462247824,-500.0,0.00016712,2]
[351233991,1738462247833,-212.53393374,0.00016757,2]
[351233992,1738462247843,-500.0,0.00016847,2]
[351233993,1738462247852,-277.08183382,0.00016848,2]
[351233994,1738462247861,-694.76,0.00016848,2]
[351233995,1738462247870,-151.0,0.00016849,2]
[351233996,1738462247879,-151.0,0.00016849,2]
[351233997,1738462247889,-156.19962994,0.00016849,2]
[351233998,1738462247898,-500.0,0.00016849,2]
[351233999,1738462247907,-500.0,0.00016849,2]
[351234000,1738462247917,-500.0,0.00016849,2]
[351234001,1738462247926,-500.0,0.00016849,2]
[351234002,1738462247936,-500.0,0.00016849,2]
[351234003,1738462247945,-500.0,0.00016849,2]
[351234004,1738462247953,-500.0,0.00016849,2]
[351234005,1738462247963,-526.25952442,0.00016849,2]
[351234006,1738462247973,-2585.97,0.00016849,2]
[351234007,1738462247982,-500.0,0.00016849,2]
[351234008,1738462247992,-1054.35,0.00016849,2]
[351234009,1738462248001,-500.0,0.00016849,2]
[351234010,1738462248010,-500.0,0.00016849,2]
[351234011,1738462248021,-2497.11,0.00016849,2]
[351234012,1738462248030,-500.0,0.00016849,2]
[351234013,1738462248040,-962.2,0.00016849,2]
[351234014,1738462248051,-742.22,0.00016849,2]
[351234015,1738462248061,-1165.68,0.00016849,2]
[351234016,1738462248070,-689.01,0.00016849,2]
[351234017,1738462248080,-2452.08,0.00016849,2]
[351234018,1738462248090,-683.4,0.00016849,2]
[351234019,1738462248099,-1203.37,0.00016849,2]
[351234020,1738462248109,-8642.28,0.00016849,2]
[351234021,1738462248118,-500.0,0.00016849,2]
[351234022,1738462248128,-694.76,0.00016984,2]
[351234023,1738462248137,-159.424662,0.00016985,2]
[351234024,1738462248147,-159.424662,0.00016985,2]
[351234025,1738462248156,-151.0,0.00016985,2]
[351234026,1738462248166,-694.76,0.00016985,2]
[351234027,1738462248175,-212.53393374,0.00016986,2]
[351234028,1738462248185,-500.0,0.00016986,2]
[351234029,1738462248194,-500.0,0.00016986,2]
[351234030,1738462248203,-500.0,0.00016986,2]
[351234031,1738462248212,-158.1519813,0.00016986,2]
[351234032,1738462248222,-534.08210788,0.00016986,2]
[351234033,1738462248237,-500.0,0.00016986,2]
[351234034,1738462248246,-500.0,0.00016986,2]
[351234035,1738462248256,-2585.97,0.00016986,2]
[351234036,1738462248267,-500.0,0.00016986,2]
[351234037,1738462248276,-1054.35,0.00016986,2]
[351234038,1738462248285,-500.0,0.00016986,2]
[351234039,1738462248297,-500.0,0.00016986,2]
[351234040,1738462248308,-2497.11,0.00016986,2]
[351234041,1738462248318,-500.0,0.00016986,2]
[351234042,1738462248327,-962.2,0.00016986,2]
[351234043,1738462248336,-742.22,0.00016986,2]
[351234044,1738462248346,-1165.68,0.00016986,2]
[351234045,1738462248355,-689.01,0.00016986,2]
[351234046,1738462248364,-808.37754738,0.00016986,2]
[351234047,1738462248458,-985.994892,0.00016986,2]
[351234048,1738462248469,-657.70756062,0.00016986,2]
[351234049,1738462248479,-683.4,0.00016986,2]
[351234050,1738462248488,-1203.37,0.00016986,2]
[351234051,1738462248498,-8642.28,0.00016986,2]
[351234052,1738462248507,-500.0,0.00016986,2]
[351234053,1738462248517,-144.17264353,0.00016987,2]
[351234054,1738462248528,-355.82735647,0.00016987,2]
[351234055,1738462248537,-479.57258475,0.00017003,2]
[351234056,1738462248545,-151.0,0.00017123,2]
[351234057,1738462248555,-151.0,0.00017123,2]
[351234058,1738462248677,-500.0,0.00017123,2]
[351234059,1738462248687,-500.0,0.00017123,2]
[351234060,1738462248698,-500.0,0.00017123,2]
[351234061,1738462248707,-500.0,0.00017123,2]
[351234062,1738462248717,-500.0,0.00017123,2]
[351234063,1738462248727,-2585.97,0.00017123,2]
[351234064,1738462248736,-500.0,0.00017123,2]
[351234065,1738462248746,-1054.35,0.00017123,2]
[351234066,1738462248755,-500.0,0.00017123,2]
[351234067,1738462248764,-500.0,0.00017123,2]
[351234068,1738462248774,-2497.11,0.00017123,2]
[351234069,1738462248784,-500.0,0.00017123,2]
[351234070,1738462248793,-962.2,0.00017123,2]
[351234071,1738462248804,-742.22,0.00017123,2]
[351234072,1738462248814,-1165.68,0.00017123,2]
[351234073,1738462248823,-689.01,0.00017123,2]
[351234074,1738462248833,-2452.08,0.00017123,2]
[351234075,1738462248843,-683.4,0.00017123,2]
[351234076,1738462248853,-1203.37,0.00017123,2]
[351234077,1738462248862,-8642.28,0.00017123,2]
[351234078,1738462248872,-500.0,0.00017123,2]
[351234079,1738462248883,-212.53393374,0.00017214,2]
[351234080,1738462248893,-159.424662,0.0001726,2]
[351234081,1738462248902,-159.424662,0.0001726,2]
[351234082,1738462248912,-151.0,0.0001726,2]
[351234083,1738462248921,-500.0,0.0001726,2]
[351234084,1738462248930,-500.0,0.0001726,2]
[351234085,1738462248940,-500.0,0.0001726,2]
[351234086,1738462248950,-500.0,0.0001726,2]
[351234087,1738462248960,-500.0,0.0001726,2]
[351234088,1738462248969,-2585.97,0.0001726,2]
[351234089,1738462248979,-500.0,0.0001726,2]
[351234090,1738462248988,-1054.35,0.0001726,2]
[351234091,1738462248999,-500.0,0.0001726,2]
[351234092,1738462249010,-623.25272769,0.0001726,2]
[351234093,1738462249020,-2497.11,0.0001726,2]
[351234094,1738462249030,-500.0,0.0001726,2]
[351234095,1738462249040,-962.2,0.0001726,2]
[351234096,1738462249051,-742.22,0.0001726,2]
[351234097,1738462249063,-1165.68,0.0001726,2]
[351234098,1738462249072,-689.01,0.0001726,2]
[351234099,1738462249081,-2452.08,0.0001726,2]
[351234100,1738462249091,-683.4,0.0001726,2]
[351234101,1738462249101,-1203.37,0.0001726,2]
[351234102,1738462249110,-8642.28,0.0001726,2]
[351234103,1738462249119,-500.0,0.0001726,2]
[351234104,1738462249130,-500.0,0.00017397,2]
[351234105,1738462249139,-500.0,0.00017397,2]
[351234106,1738462249149,-500.0,0.00017397,2]
[351234107,1738462249158,-500.0,0.00017397,2]
[351234108,1738462249167,-500.0,0.00017397,2]
[351234109,1738462249177,-2585.97,0.00017397,2]
[351234110,1738462249187,-500.0,0.00017397,2]
[351234111,1738462249196,-1054.35,0.00017397,2]
[351234112,1738462249205,-500.0,0.00017397,2]
[351234113,1738462249214,-2497.11,0.00017397,2]
[351234114,1738462249224,-500.0,0.00017397,2]
[351234115,1738462249238,-962.2,0.00017397,2]
[351234116,1738462249248,-742.22,0.00017397,2]
[351234117,1738462249258,-1165.68,0.00017397,2]
[351234118,1738462249268,-689.01,0.00017397,2]
[351234119,1738462249278,-1319.60369454,0.00017397,2]
[351234120,1738462249290,-1132.47630546,0.00017397,2]
[351234121,1738462249302,-683.4,0.00017397,2]
[351234122,1738462249312,-1203.37,0.00017397,2]
[351234123,1738462249322,-4152.98000773,0.00017397,2]
[351234124,1738462249334,-950.53187622,0.00017397,2]
[351234125,1738462351069,6070.34581432,0.00020453,120]
[351234126,1738462397233,500.0,0.00014964,2]
[351234128,1738462762191,189.031106,0.00013973,2]
[351234131,1738463041847,179.53,0.00020453,120]
[351234138,1738463180167,697.09258118,0.00015011,2]
[351234149,1738463328443,500.0,0.00014964,2]
[351234150,1738463347126,-156.8,0.00016,2]
[351234151,1738463392469,2000.0,0.00015011,2]
[351234204,1738463435911,-143.2,0.00016,2]
[351234206,1738463435921,-160.06470928,0.00016175,2]
[351234208,1738463435930,-71.73529072,0.00016338,2]
[351234227,1738463438243,-130.10775496,0.00016338,2]
[351234228,1738463438252,-151.66256313,0.00016428,2]
[351234230,1738463438262,-300.0,0.00016436,2]
[351234231,1738463438272,-500.0,0.00016437,2]
[351234233,1738463438282,-339.13231525,0.00016437,2]
[351234234,1738463438291,-500.0,0.00016437,2]
[351234235,1738463438300,-500.0,0.00016437,2]
[351234237,1738463438313,-500.0,0.00016437,2]
[351234238,1738463438322,-500.0,0.00016437,2]
[351234239,1738463438331,-500.0,0.00016437,2]
[351234241,1738463438341,-500.0,0.00016437,2]
[351234242,1738463438350,-439.55983555,0.00016437,2]
[351234245,1738463438362,-60.44016445,0.00016437,2]
[351234247,1738463438372,-500.0,0.00016437,2]
[351234249,1738463438381,-500.0,0.00016437,2]
[351234250,1738463438390,-500.0,0.00016437,2]
[351234251,1738463438400,-500.0,0.00016437,2]
[351234252,1738463438410,-500.0,0.00016437,2]
[351234253,1738463438419,-500.0,0.00016437,2]
[351234254,1738463438428,-39.72007323,0.00016437,2]
[351234255,1738463438440,-460.27992677,0.00016437,2]
[351234257,1738463438449,-500.0,0.00016437,2]
[351234258,1738463438459,-500.0,0.00016437,2]
[351234259,1738463438468,-500.0,0.00016437,2]
[351234260,1738463438478,-500.0,0.00016437,2]
[351234261,1738463438490,-500.0,0.00016437,2]
[351234262,1738463438500,-500.0,0.00016437,2]
[351234263,1738463438509,-167.65484448,0.00016437,2]
[351234264,1738463438519,-500.0,0.00016437,2]
[351234265,1738463438530,-500.0,0.00016437,2]
[351234266,1738463438539,-230.8735594,0.00016437,2]
[351234267,1738463438551,-135.36055583,0.00016437,2]
[351234268,1738463438564,-546.38685329,0.00016437,2]
[351234269,1738463438573,-500.0,0.00016437,2]
[351234270,1738463438584,-500.0,0.00016437,2]
[351234271,1738463438594,-500.0,0.00016437,2]
[351234272,1738463438603,-548.13554058,0.00016437,2]
[351234273,1738463438613,-283.12617117,0.00016437,2]
[351234274,1738463438622,-494.54937509,0.00016437,2]
[351234275,1738463438631,-500.0,0.00016437,2]
[351234276,1738463438644,-500.0,0.00016437,2]
[351234277,1738463438654,-388.05664333,0.00016437,2]
[351234278,1738463438663,-171.3650177,0.00016437,2]
[351234279,1738463438672,-510.21327456,0.00016438,2]
[351234280,1738463438683,-502.42370755,0.00016438,2]
[351234281,1738463438692,-500.0,0.00016438,2]
[351234282,1738463438702,-500.0,0.00016438,2]
[351234283,1738463438711,-500.94514634,0.00016438,2]
[351234284,1738463438721,-501.98531095,0.00016438,2]
[351234285,1738463438731,-299.00622135,0.00016438,2]
[351234286,1738463438740,-504.77745485,0.00016438,2]
[351234287,1738463438750,-501.77973633,0.00016438,2]
[351234288,1738463438759,-500.0,0.00016438,2]
[351234289,1738463438768,-500.0,0.00016438,2]
[351234290,1738463438777,-369.899802,0.00016438,2]
[351234291,1738463438787,-501.9822771,0.00016438,2]
[351234292,1738463438796,-501.93782636,0.00016438,2]
[351234293,1738463438807,-501.626738,0.00016438,2]
[351234294,1738463438817,-502.23312189,0.00016438,2]
[351234295,1738463438827,-147.0194111,0.00016438,2]
[351234296,1738463438839,-358.31665811,0.00016438,2]
[351234297,1738463438848,-501.78556911,0.00016438,2]
[351234298,1738463438857,-503.96357399,0.00016438,2]
[351234299,1738463438867,-503.82894241,0.00016438,2]
[351234300,1738463438876,-501.33378858,0.00016438,2]
[351234301,1738463438886,-499.92430052,0.00016438,2]
[351234302,1738463438895,-558.56531238,0.00016438,2]
[351234303,1738463438905,-501.19181129,0.00016438,2]
[351234304,1738463438915,-503.12948702,0.00016438,2]
[351234305,1738463438924,-501.62185845,0.00016438,2]
[351234306,1738463438933,-505.70017159,0.00016438,2]
[351234307,1738463438942,-501.37886716,0.00016438,2]
[351234308,1738463438952,-503.26422936,0.00016438,2]
[351234309,1738463438962,-504.32034822,0.00016438,2]
[351234310,1738463438972,-503.24224829,0.00016438,2]
[351234311,1738463438982,-501.94478288,0.00016438,2]
[351234312,1738463438992,-394.42332195,0.00016438,2]
[351234313,1738463439012,-107.32058886,0.00016438,2]
[351234314,1738463439021,-502.54743563,0.00016438,2]